fUSD/lending_fUSD_20260202
["ID","MTS","AMOUNT","RATE_DAILY","PERIOD"]
[404351824,1770071448806,-486.29318482,0.00015473,2]
[404351825,1770071448817,-200.0,0.0001548,2]
[404351826,1770071448830,-500.0,0.0001548,2]
[404351827,1770071448843,-2129.0,0.00015529,2]
[404351828,1770071448855,-2000.0,0.00015616,2]
[404351829,1770071448864,-583.71186665,0.00015616,2]
[404351830,1770071448880,-1666.54524169,0.00015616,2]
[404351831,1770071448893,-2000.0,0.00015616,2]
[404351832,1770071448906,-1879.40909817,0.00015616,2]
[404351833,1770071448918,-2000.0,0.00015616,2]
[404351834,1770071448929,-2000.0,0.00015616,2]
[404351835,1770071448940,-2000.0,0.00015616,2]
[404351836,1770071448950,-1517.4616613,0.00015616,2]
[404351837,1770071448962,-2000.0,0.00015616,2]
[404351838,1770071448973,-1006.04407484,0.00015616,2]
[404351839,1770071448984,-2000.0,0.00015616,2]
[404351840,1770071448994,-40446.19332334,0.00015662,2]
[404351841,1770071449004,-850.87755852,0.00015667,2]
[404351842,1770071449016,-150.92620664,0.00015673,2]
[404351843,1770071449028,-6317.2,0.00015753,2]
[404351844,1770071449039,-346.92554585,0.00015767,2]
[404351845,1770071449049,-599.60298507,0.00015768,2]
[404351846,1770071449059,-747.8093786,0.00015768,2]
[404351847,1770071449068,-251.11897888,0.00015769,2]
[404351848,1770071449078,-1712.93078312,0.00015769,2]
[404351849,1770071449087,-209.40437684,0.00015769,2]
[404351850,1770071449097,-864.56091313,0.00015921,2]
[404351851,1770071449106,-5000.0,0.0001596,2]
[404351852,1770071449116,-956.83032625,0.00016,2]
[404351853,1770071449126,-270.91542523,0.00016,2]
[404351854,1770071449135,-421.15115649,0.00016,2]
[404351855,1770071449144,-2775832.00105915,0.00016,4]
[404351856,1770071449154,-163.404548,0.00016,2]
[404351857,1770071449165,-151.0,0.00016,2]
[404351858,1770071449175,-500.0,0.00016021,2]
[404351859,1770071449185,-494.98211284,0.00016021,2]
[404351860,1770071449194,-960.71724918,0.00016021,2]
[404351861,1770071449204,-486.90150068,0.00016021,2]
[404351862,1770071449213,-1000.0,0.00016021,2]
[404351863,1770071449223,-1128.44291984,0.00016021,2]
[404351864,1770071449232,-1000.0,0.00016021,2]
[404351865,1770071449242,-1000.0,0.00016021,2]
[404351866,1770071449251,-335.25607575,0.00016021,2]
[404351867,1770071449261,-500.0,0.00016021,2]
[404351868,1770071449271,-1000.0,0.00016021,2]
[404351869,1770071449280,-1000.0,0.00016021,2]
[404351870,1770071449290,-1000.0,0.00016021,2]
[404351871,1770071449299,-504.20951303,0.00016021,2]
[404351872,1770071449309,-1000.0,0.00016021,2]
[404351873,1770071449319,-1000.0,0.00016021,2]
[404351874,1770071449329,-1000.0,0.00016021,2]
[404351875,1770071449339,-1000.0,0.00016021,2]
[404351876,1770071449348,-1000.0,0.00016021,2]
[404351877,1770071449358,-502.15998223,0.00016021,2]
[404351878,1770071449371,-1000.0,0.00016021,2]
[404351879,1770071449382,-1000.0,0.00016021,2]
[404351880,1770071449392,-1000.0,0.00016021,2]
[404351881,1770071449403,-1000.0,0.00016021,2]
[404351882,1770071449413,-1000.0,0.00016021,2]
[404351883,1770071449423,-500.0,0.00016021,2]
[404351884,1770071449434,-1000.0,0.00016021,2]
[404351885,1770071449443,-1000.0,0.00016021,2]
[404351886,1770071449453,-1000.0,0.00016021,2]
[404351887,1770071449463,-501.28378078,0.00016021,2]
[404351888,1770071449473,-500.0,0.00016021,2]
[404351889,1770071449485,-1000.0,0.00016021,2]
[404351890,1770071449498,-1000.0,0.00016021,2]
[404351891,1770071449509,-1000.0,0.00016021,2]
[404351892,1770071449520,-500.0,0.00016021,2]
[404351893,1770071449531,-1000.0,0.00016021,2]
[404351894,1770071449544,-1000.0,0.00016021,2]
[404351895,1770071449556,-1000.0,0.00016021,2]
[404351896,1770071449566,-1000.0,0.00016021,2]
[404351897,1770071449576,-1000.0,0.00016021,2]
[404351898,1770071449591,-1000.0,0.00016021,2]
[404351899,1770071449601,-1000.0,0.00016021,2]
[404351900,1770071449611,-1000.0,0.00016021,2]
[404351901,1770071449620,-1000.0,0.00016021,2]
[404351902,1770071449631,-200.0,0.00016028,2]
[404351903,1770071449640,-500.0,0.00016028,2]
[404351904,1770071449650,-1600.0,0.00016048,2]
[404351905,1770071449661,-9999.99,0.00016116,2]
[404351906,1770071449670,-360.21,0.00016122,2]
[404351907,1770071449679,-2500.0,0.00016164,2]
[404351908,1770071449689,-956.63226471,0.00016164,2]
[404351909,1770071449698,-2500.0,0.00016164,2]
[404351910,1770071449708,-473.78998774,0.00016164,2]
[404351911,1770071449718,-1018.20605405,0.00016164,2]
[404351912,1770071449727,-2315.26732966,0.00016164,2]
[404351913,1770071449737,-2500.0,0.00016164,2]
[404351914,1770071449746,-5000.00522582,0.000162,5]
[404351915,1770071449760,-260.4103811,0.00016317,2]
[404351916,1770071449770,-1776.30922209,0.00016317,2]
[404351917,1770071449779,-217.15233878,0.00016317,2]
[404351918,1770071449789,-200.0,0.0001634,2]
[404351919,1770071449799,-868.9,0.0001642,2]
[404351920,1770071449808,-519.2350024,0.00016437,2]
[404351921,1770071449818,-1894.56667805,0.00016438,2]
[404351922,1770071449827,-151.0,0.00016438,2]
[404351923,1770071449837,-151.0,0.00016438,2]
[404351924,1770071449847,-151.0,0.00016438,2]
[404351925,1770071449856,-151.0,0.00016438,2]
[404351926,1770071449865,-151.0,0.00016438,2]
[404351927,1770071449879,-500.0,0.00016438,2]
[404351928,1770071449888,-500.0,0.00016438,2]
[404351929,1770071449898,-500.0,0.00016438,2]
[404351930,1770071449908,-500.0,0.00016438,2]
[404351931,1770071449918,-500.0,0.00016438,2]
[404351932,1770071449927,-500.0,0.00016438,2]
[404351933,1770071449937,-500.0,0.00016438,2]
[404351934,1770071449947,-500.0,0.00016438,2]
[404351935,1770071449957,-500.0,0.00016438,2]
[404351936,1770071449967,-500.0,0.00016438,2]
[404351937,1770071449978,-500.0,0.00016438,2]
[404351938,1770071449988,-500.0,0.00016438,2]
[404351939,1770071449998,-500.0,0.00016438,2]
[404351940,1770071450008,-500.0,0.00016438,2]
[404351941,1770071450018,-500.0,0.00016438,2]
[404351942,1770071450028,-500.0,0.00016438,2]
[404351943,1770071450039,-500.0,0.00016438,2]
[404351944,1770071450049,-500.0,0.00016438,2]
[404351945,1770071450059,-500.0,0.00016438,2]
[404351946,1770071450070,-500.0,0.00016438,2]
[404351947,1770071450080,-500.0,0.00016438,2]
[404351948,1770071450091,-500.0,0.00016438,2]
[404351949,1770071450101,-500.0,0.00016438,2]
[404351950,1770071450323,-500.0,0.00016438,2]
[404351951,1770071450333,-500.0,0.00016438,2]
[404351952,1770071450343,-500.0,0.00016438,2]
[404351953,1770071450352,-500.0,0.00016438,2]
[404351954,1770071450361,-500.0,0.00016438,2]
[404351955,1770071450371,-500.0,0.00016438,2]
[404351956,1770071450380,-500.0,0.00016438,2]
[404351957,1770071450389,-500.0,0.00016438,2]
[404351958,1770071450398,-500.0,0.00016438,2]
[404351959,1770071450407,-500.0,0.00016438,2]
[404351960,1770071450417,-500.0,0.00016438,2]
[404351961,1770071450426,-1604.01654816,0.00016438,2]
[404351962,1770071450435,-1604.01654816,0.00016438,2]
[404351963,1770071450444,-1604.01654816,0.00016438,2]
[404351964,1770071450453,-6317.2,0.00016438,2]
[404351965,1770071450463,-151.0,0.00016438,2]
[404351966,1770071450472,-151.0,0.00016438,2]
[404351967,1770071450481,-150.25668222,0.00016438,2]
[404351968,1770071450490,-180.96104,0.00016438,2]
[404351969,1770071450499,-180.96104,0.00016438,2]
[404351970,1770071450508,-180.96104,0.00016438,2]
[404351971,1770071450517,-180.96104,0.00016438,2]
[404351972,1770071450526,-333.274447,0.00016438,2]
[404351973,1770071450535,-333.274447,0.00016438,2]
[404351974,1770071450546,-333.274447,0.00016438,2]
[404351975,1770071450555,-333.274447,0.00016438,2]
[404351976,1770071450563,-800.0,0.00016438,2]
[404351977,1770071450573,-151.0,0.00016438,2]
[404351978,1770071450587,-151.0,0.00016438,2]
[404351979,1770071450597,-1725.59276534,0.00016444,2]
[404351980,1770071450606,-150.0087681,0.00016472,2]
[404351981,1770071450615,-150.0,0.00016473,2]
[404351982,1770071450625,-773.23,0.00016474,2]
[404351983,1770071450634,-1267.89050801,0.00016568,2]
[404351984,1770071450643,-464.09949899,0.00016568,2]
[404351985,1770071450652,-1500.0,0.00016568,2]
[404351986,1770071450663,-1500.0,0.00016568,2]
[404351987,1770071450672,-500.0,0.00016568,2]
[404351988,1770071450682,-1136.09023448,0.00016568,2]
[404351989,1770071450691,-1500.0,0.00016568,2]
[404351990,1770071450702,-1500.0,0.00016568,2]
[404351991,1770071450712,-368.88723017,0.00016568,2]
[404351992,1770071450723,-1500.0,0.00016568,2]
[404351993,1770071450732,-1500.0,0.00016568,2]
[404351994,1770071450742,-1450.35816697,0.00016568,2]
[404351995,1770071450751,-1484.36146112,0.00016568,2]
[404351996,1770071450760,-871.81162767,0.00016568,2]
[404351997,1770071450770,-432.32446254,0.00016568,2]
[404351998,1770071450779,-500.0,0.00016568,2]
[404351999,1770071450788,-1191.30611065,0.00016568,2]
[404352000,1770071450797,-525.04982288,0.00016568,2]
[404352001,1770071450806,-1000.0,0.00016568,2]
[404352002,1770071450815,-503.30357537,0.00016568,2]
[404352003,1770071450824,-1500.0,0.00016568,2]
[404352004,1770071450833,-1502.44429427,0.00016568,2]
[404352005,1770071450842,-385.68955508,0.00016568,2]
[404352006,1770071450851,-1500.0,0.00016568,2]
[404352007,1770071450861,-1503.56470175,0.00016568,2]
[404352008,1770071450873,-1000.0,0.00016568,2]
[404352009,1770071450884,-1408.63714551,0.00016568,2]
[404352010,1770071450894,-230.88290778,0.00016576,2]
[404352011,1770071450903,-500.0,0.00016576,2]
[404352012,1770071450913,-360.77468192,0.000166,2]
[404352013,1770071450922,-30954.45898143,0.00016662,2]
[404352014,1770071451216,-9415.94431804,0.00016662,2]
[404352015,1770071451227,-7389.36454677,0.00016662,2]
[404352016,1770071451238,-3676.2909891,0.00016662,2]
[404352017,1770071451257,-1615.33548855,0.00016662,2]
[404352018,1770071451414,-151.0,0.0001,2]
[404352019,1770071451424,-151.0,0.0001,2]
[404352020,1770071451435,-151.0,0.00012739,2]
[404352021,1770071451445,-1673.73657611,0.00016662,2]
[404352022,1770071451455,-868.9,0.00016694,2]
[404352023,1770071451465,-3000.0,0.00016712,2]
[404352024,1770071451476,-2016.45192786,0.00016712,2]
[404352025,1770071451486,-3000.0,0.00016712,2]
[404352026,1770071451496,-165.79,0.00016712,2]
[404352027,1770071451507,-370.39,0.00016713,2]
[404352028,1770071451518,-773.23,0.00016747,2]
[404352029,1770071451529,-500.0,0.00016782,2]
[404352030,1770071451538,-213.14,0.00016857,2]
[404352031,1770071451547,-270.0455652,0.00016865,2]
[404352032,1770071451556,-1842.03266331,0.00016865,2]
[404352033,1770071451565,-225.18697532,0.00016865,2]
[404352034,1770071451575,-2258.0,0.00016901,2]
[404352035,1770071451586,-1806.90074652,0.00016901,2]
[404352036,1770071451597,-4865.58111011,0.00016901,2]
[404352037,1770071451608,-564.11572434,0.00016901,2]
[404352038,1770071451641,-1798.40241903,0.00016901,2]
[404352039,1770071451650,-573.82398548,0.00016968,2]
[404352040,1770071451665,-295.07601452,0.00016968,2]
[404352041,1770071451674,-2862.42398548,0.00017,2]
[404352042,1770071453985,-1.7e-07,0.00017,2]
[404352043,1770071454001,-584344.60275356,0.00017,2]
[404352044,1770071454012,-23631.34609383,0.00017,2]
[404352045,1770071454029,-381303.71785549,0.00017,2]
[404352046,1770071454038,-159.60859955,0.00017002,2]
[404352047,1770071454048,-300.0,0.00017021,2]
[404352048,1770071454058,-773.23,0.00017021,2]
[404352049,1770071454068,-2683.0,0.0001708,2]
[404352050,1770071454078,-501.43163729,0.00017116,2]
[404352051,1770071454087,-1500.0,0.00017116,2]
[404352052,1770071454097,-365.91722632,0.00017116,2]
[404352053,1770071454106,-1006.52245564,0.00017116,2]
[404352054,1770071454116,-2000.0,0.00017116,2]
[404352055,1770071454125,-1500.0,0.00017116,2]
[404352056,1770071454135,-500.0,0.00017124,2]
[404352057,1770071454144,-359.76179104,0.00017136,2]
[404352058,1770071454154,-341.63207322,0.00017163,2]
[404352059,1770071454163,-271.66717196,0.00017226,2]
[404352060,1770071454173,-988.5,0.00017242,2]
[404352061,1770071454183,-3500.0,0.0001726,2]
[404352062,1770071454192,-1500.0,0.0001726,2]
[404352063,1770071454201,-773.23,0.00017295,2]
[404352064,1770071454211,-280.03725112,0.00017413,2]
[404352065,1770071454220,-1910.18787185,0.00017413,2]
[404352066,1770071454229,-233.51889341,0.00017413,2]
[404352067,1770071454238,-13442.50995431,0.000175,2]
[404352068,1770071454247,-1606.61895264,0.000175,2]
[404352069,1770071454256,-1600.0,0.00017507,2]
[404352070,1770071454594,-718.43917855,0.00017534,2]
[404352071,1770071454624,-450.0,0.00017568,2]
[404352072,1770071454640,-2353.0,0.00017623,2]
[404352073,1770071454650,-2500.0,0.00017664,2]
[404352074,1770071454659,-500.0,0.00017672,2]
[404352075,1770071454669,-782.62456958,0.000177,2]
[404352076,1770071454679,-2353.0,0.00017702,2]
[404352077,1770071454689,-2353.0,0.00017753,2]
[404352078,1770071454697,-150.0087681,0.00017767,2]
[404352079,1770071454707,-502.14782899,0.000178,3]
[404352080,1770071454719,-4000.0,0.00017808,2]
[404352081,1770071454731,-159.60859955,0.00017852,2]
[404352082,1770071454741,-1001.93671758,0.0001786,2]
[404352083,1770071454751,-2353.0,0.00017863,2]
[404352084,1770071454762,-500.0,0.000179,2]
[404352085,1770071454771,-20453.46079029,0.000179,3]
[404352086,1770071454780,-515.85083038,0.000179,2]
[404352087,1770071454789,-2245.23080824,0.000179,2]
[404352088,1770071454798,-14576.09983624,0.000179,2]
[404352089,1770071454807,-305.64052574,0.00017948,2]
[404352090,1770071454816,-290.39862941,0.00017961,2]
[404352091,1770071454825,-1980.86482311,0.00017961,2]
[404352092,1770071454834,-242.15909246,0.00017961,2]
[404352093,1770071454843,-82006.37079999,0.0001799,3]
[404352094,1770071454852,-115456.96027021,0.0001799,2]
[404352095,1770071454860,-2353.0,0.00017996,2]
[404352096,1770071454870,-11591.91307944,0.00017999,2]
[404352097,1770071454879,-300.0,0.00017999,2]
[404352098,1770071454888,-300.0,0.00017999,2]
[404352099,1770071454897,-300.0,0.00017999,2]
[404352100,1770071454906,-666.0,0.00017999,2]
[404352101,1770071454916,-300.0,0.00017999,2]
[404352102,1770071454926,-300.0,0.00017999,2]
[404352103,1770071454935,-666.0,0.00017999,2]
[404352104,1770071454944,-150.0,0.00018,7]
[404352105,1770071454953,-3960416.44882608,0.00018,2]
[404352106,1770071455145,-151.0,0.00012739,2]
[404352107,1770071455154,-2800.26,0.00013699,2]
[404352108,1770071455163,-15056.60878527,0.00018,2]
[404352109,1770071455187,-248663.57561475,0.00018,2]
[404352110,1770071455397,-243404.77782372,0.00018,2]
[404352111,1770071455408,-391.43999997,0.00018,2]
[404352114,1770071480409,500.0,9.44e-05,2]
[404352115,1770071486317,10000.01,9.541e-05,2]
[404352116,1770071486344,10000.01,9.541e-05,2]
[404352117,1770071486372,10000.01,9.541e-05,2]
[404352118,1770071486398,3288.2205,9.541e-05,2]
[404352119,1770071501922,6711.7895,9.441e-05,2]
[404352120,1770071501957,10000.01,9.441e-05,2]
[404352121,1770071501992,10000.01,9.441e-05,2]
[404352122,1770071502028,10000.01,9.441e-05,2]
[404352123,1770071502063,10000.01,9.441e-05,2]
[404352124,1770071502097,10000.01,9.441e-05,2]
[404352125,1770071503061,-5000.01,9.441e-05,2]
[404352126,1770071505687,-5000.01,9.441e-05,2]
[404352127,1770071506105,-5000.01,9.441e-05,2]
[404352128,1770071506119,-5000.01,9.441e-05,2]
[404352129,1770071506134,-5000.01,9.441e-05,2]
[404352130,1770071506162,-5000.01,9.441e-05,2]
[404352133,1770071506305,-5000.01,9.441e-05,2]
[404352134,1770071506421,-5000.01,9.441e-05,2]
[404352135,1770071506538,-5000.01,9.441e-05,2]
[404352136,1770071506675,-5000.01,9.441e-05,2]
[404352137,1770071511965,-5000.01,9.441e-05,2]
[404352138,1770071512133,-5000.01,9.441e-05,2]
[404352139,1770071512317,-5000.01,9.441e-05,2]
[404352140,1770071512445,-5000.01,9.441e-05,2]
[404352141,1770071512884,-5000.01,9.441e-05,2]
[404352142,1770071512899,-5000.01,9.441e-05,2]
[404352143,1770071512913,-5000.01,9.441e-05,2]
[404352144,1770071512949,-5000.01,9.441e-05,2]
[404352145,1770071513065,-5000.01,9.441e-05,2]
[404352146,1770071513183,-5000.01,9.441e-05,2]
[404352147,1770071518016,-5000.01,9.441e-05,2]
[404352148,1770071518146,-5000.01,9.441e-05,2]
[404352149,1770071518256,-5000.01,9.441e-05,2]
[404352150,1770071518388,-5000.01,9.441e-05,2]
[404352151,1770071518554,-5000.01,9.441e-05,2]
[404352152,1770071518668,-5000.01,9.441e-05,2]
[404352153,1770071518805,-5000.01,9.441e-05,2]
[404352154,1770071518922,-5000.01,9.441e-05,2]
[404352155,1770071519082,-5000.01,9.441e-05,2]
[404352156,1770071519251,-5000.01,9.441e-05,2]
[404352157,1770071524115,-5000.01,9.441e-05,2]
[404352158,1770071524254,-5000.01,9.441e-05,2]
[404352159,1770071524454,-5000.01,9.441e-05,2]
[404352160,1770071524934,-5000.01,9.441e-05,2]
[404352161,1770071524961,-5000.01,9.441e-05,2]
[404352162,1770071524976,-5000.01,9.441e-05,2]
[404352163,1770071524991,-5000.01,9.441e-05,2]
[404352164,1770071525038,-5000.01,9.441e-05,2]
[404352165,1770071525202,-5000.01,9.441e-05,2]
[404352166,1770071525326,-5000.01,9.441e-05,2]
[404352167,1770071530095,-1226.60944355,9.441e-05,2]
[404352168,1770071542182,-5000.01,9.441e-05,2]
[404352169,1770071542309,-5000.01,9.441e-05,2]
[404352170,1770071542415,-5000.01,9.441e-05,2]
[404352171,1770071542605,-5000.01,9.441e-05,2]
[404352172,1770071542944,-5000.01,9.441e-05,2]
[404352173,1770071543063,-5000.01,9.441e-05,2]
[404352174,1770071543184,-5000.01,9.441e-05,2]
[404352175,1770071543290,-5000.01,9.441e-05,2]
[404352176,1770071543470,-5000.01,9.441e-05,2]
[404352177,1770071544159,-5000.01,9.441e-05,2]
[404352178,1770071548236,-5000.01,9.441e-05,2]
[404352179,1770071548371,-5000.01,9.441e-05,2]
[404352180,1770071548485,-5000.01,9.441e-05,2]
[404352181,1770071548601,-5000.01,9.441e-05,2]
[404352182,1770071548736,-5000.01,9.441e-05,2]
[404352183,1770071548844,-5000.01,9.441e-05,2]
[404352184,1770071548961,-5000.01,9.441e-05,2]
[404352185,1770071549068,-5000.01,9.441e-05,2]
[404352186,1770071549193,-5000.01,9.441e-05,2]
[404352187,1770071549328,-5000.01,9.441e-05,2]
[404352188,1770071554250,-5000.01,9.441e-05,2]
[404352189,1770071554382,-5000.01,9.441e-05,2]
[404352190,1770071554503,-5000.01,9.441e-05,2]
[404352191,1770071554836,-5000.01,9.441e-05,2]
[404352192,1770071554965,-5000.01,9.441e-05,2]
[404352193,1770071555407,-5000.01,9.441e-05,2]
[404352194,1770071555429,-5000.01,9.441e-05,2]
[404352195,1770071555454,-5000.01,9.441e-05,2]
[404352196,1770071555474,-5000.01,9.441e-05,2]
[404352197,1770071555534,-5000.01,9.441e-05,2]
[404352198,1770071558312,-9500.01,9.441e-05,2]
[404352199,1770071558385,-10000.01,9.441e-05,2]
[404352200,1770071558411,-10000.01,9.441e-05,2]
[404352201,1770071560241,-500.0,9.44e-05,2]
[404352202,1770071560285,-483.11086802,9.44e-05,2]
[404352203,1770071560322,-500.0,9.44e-05,2]
[404352204,1770071560359,-197.2023274,9.44e-05,2]
[404352205,1770071560394,-179.47148321,9.44e-05,2]
[404352206,1770071560427,-500.0,9.44e-05,2]
[404352207,1770071560464,-500.0,9.44e-05,2]
[404352208,1770071560499,-500.0,9.44e-05,2]
[404352209,1770071560532,-500.0,9.44e-05,2]
[404352210,1770071560565,-500.0,9.44e-05,2]
[404352211,1770071560598,-500.0,9.44e-05,2]
[404352212,1770071561220,-500.0,9.44e-05,2]
[404352213,1770071561253,-574.02160474,9.44e-05,2]
[404352214,1770071561293,-500.0,9.44e-05,2]
[404352215,1770071561333,-500.0,9.44e-05,2]
[404352216,1770071561372,-500.0,9.44e-05,2]
[404352217,1770071561403,-500.0,9.44e-05,2]
[404352218,1770071561441,-500.0,9.44e-05,2]
[404352219,1770071561479,-500.0,9.44e-05,2]
[404352220,1770071562014,-500.0,9.44e-05,2]
[404352221,1770071562058,-500.0,9.44e-05,2]
[404352222,1770071562100,-500.0,9.44e-05,2]
[404352223,1770071562143,-500.0,9.44e-05,2]
[404352224,1770071562185,-500.0,9.44e-05,2]
[404352225,1770071562226,-500.0,9.44e-05,2]
[404352226,1770071562266,-500.0,9.44e-05,2]
[404352227,1770071562307,-500.0,9.44e-05,2]
[404352228,1770071562348,-500.0,9.44e-05,2]
[404352229,1770071562391,-500.0,9.44e-05,2]
[404352230,1770071562564,-500.0,9.44e-05,2]
[404352231,1770071562604,-500.0,9.44e-05,2]
[404352232,1770071562645,-404.37998746,9.44e-05,2]
[404352233,1770071562686,-500.0,9.44e-05,2]
[404352234,1770071562731,-500.0,9.44e-05,2]
[404352235,1770071563493,-228.0374458,9.441e-05,2]
[404352236,1770071563512,-500.0,9.441e-05,2]
[404352237,1770071563531,-404.37998746,9.441e-05,2]
[404352238,1770071563548,-500.0,9.441e-05,2]
[404352239,1770071563574,-500.0,9.441e-05,2]
[404352240,1770071563596,-5191.25002508,9.441e-05,2]
[404352241,1770071563768,-10000.01,9.441e-05,2]
[404352242,1770071563787,-10000.01,9.441e-05,2]
[404352243,1770071563806,-10000.01,9.441e-05,2]
[404352244,1770071563835,-5000.01,9.441e-05,2]
[404352245,1770071563863,-5000.01,9.441e-05,2]
[404352246,1770071563878,-5000.01,9.441e-05,2]
[404352247,1770071563891,-5000.01,9.441e-05,2]
[404352248,1770071563919,-5000.01,9.441e-05,2]
[404352249,1770071563938,-5000.01,9.441e-05,2]
[404352250,1770071564001,-5000.01,9.441e-05,2]
[404352251,1770071564393,-5000.01,9.441e-05,2]
[404352252,1770071564411,-5000.01,9.441e-05,2]
[404352253,1770071564507,-5000.01,9.441e-05,2]
[404352254,1770071569338,-5000.01,9.441e-05,2]
[404352255,1770071569460,-5000.01,9.441e-05,2]
[404352256,1770071569598,-5000.01,9.441e-05,2]
[404352257,1770071569732,-5000.01,9.441e-05,2]
[404352258,1770071569823,-5000.01,9.441e-05,2]
[404352259,1770071569984,-5000.01,9.441e-05,2]
[404352260,1770071570097,-5000.01,9.441e-05,2]
[404352261,1770071570208,-5000.01,9.441e-05,2]
[404352262,1770071570344,-5000.01,9.441e-05,2]
[404352263,1770071570439,-5000.01,9.441e-05,2]
[404352264,1770071668063,-500.0,9.414e-05,2]
[404352265,1770071668086,-150.0,9.414e-05,2]
[404352266,1770071668109,-193.0,9.419e-05,2]
[404352267,1770071668133,-1200.0,9.424e-05,2]
[404352268,1770071668158,-21350.0,9.425e-05,2]
[404352269,1770071668183,-150.0,9.44e-05,2]
[404352270,1770071668208,-300.0,9.44e-05,2]
[404352271,1770071668232,-500.0,9.44e-05,2]
[404352272,1770071668264,-500.0,9.44e-05,2]
[404352273,1770071668296,-500.0,9.44e-05,2]
[404352274,1770071668326,-500.0,9.44e-05,2]
[404352275,1770071668355,-300.0,9.44e-05,2]
[404352276,1770071668386,-72657.0,9.441e-05,2]
[404352277,1770071738975,-261.69,9.4e-05,2]
[404352286,1770071762432,98.21157458,7.654e-05,2]
[404352287,1770071762460,242.75842542,7.654e-05,2]
[404352288,1770071762649,340.97,8.419e-05,2]
[404352289,1770071762863,340.97,9.185e-05,2]
[404352290,1770071804948,267.6807,9.341e-05,2]
[404352291,1770071992348,1998.04615154,9.331e-05,2]
[404352292,1770071992379,714.10550172,9.331e-05,2]
[404352293,1770072082791,1875.84,8.9e-05,2]
[404352294,1770072103652,2546.2994,9.231e-05,2]
[404352295,1770072145802,7160.9476,9.231e-05,2]
[404352296,1770072153153,292.763,8.813e-05,2]
[404352297,1770072153182,709.817,8.813e-05,2]
[404352298,1770072157161,-151.0,9.328e-05,2]
[404352299,1770072172129,-250.0,9.329e-05,2]
[404352300,1770072182694,1522.6827,9.231e-05,2]
[404352301,1770072187306,-150.0,9.329e-05,2]
[404352302,1770072187343,-300.0,9.329e-05,2]
[404352303,1770072202509,-500.0,9.329e-05,2]
[404352304,1770072217796,-250.0,9.329e-05,2]
[404352307,1770072232902,-300.0,9.33e-05,2]
[404352308,1770072232936,-1200.0,9.33e-05,2]
[404352309,1770072232970,-227.0,9.33e-05,2]
[404352310,1770072233004,-891.8,9.33e-05,2]
[404352311,1770072233602,-500.0,9.33e-05,2]
[404352312,1770072238948,4000.01,9.231e-05,2]
[404352313,1770072238969,2725.8262,9.231e-05,2]
[404352314,1770072247482,500.0,9.33e-05,2]
[404352315,1770072257025,500.0,9.304e-05,2]
[404352316,1770072257562,150.0,9.304e-05,2]
[404352317,1770072283986,9350.01,9.32e-05,2]
[404352318,1770072284019,5000.01,9.32e-05,2]
[404352319,1770072284044,5000.01,9.32e-05,2]
[404352320,1770072284075,10000.01,9.32e-05,2]
[404352321,1770072284100,5000.01,9.32e-05,2]
[404352322,1770072284125,5000.01,9.32e-05,2]
[404352323,1770072284157,3435.28459045,9.32e-05,2]
[404352324,1770072287833,500.0,9.33e-05,2]
[404352325,1770072287896,-404.62910732,9.33e-05,2]
[404352326,1770072287928,-535.44629778,9.33e-05,2]
[404352327,1770072287958,-500.0,9.33e-05,2]
[404352328,1770072287987,-500.0,9.33e-05,2]
[404352329,1770072288016,-500.0,9.33e-05,2]
[404352330,1770072293876,-500.0,9.33e-05,2]
[404352331,1770072293912,-500.0,9.33e-05,2]
[404352332,1770072293947,-437.29773396,9.33e-05,2]
[404352333,1770072293982,-174.89128942,9.33e-05,2]
[404352334,1770072294025,-500.0,9.33e-05,2]
[404352335,1770072294066,-275.63195324,9.33e-05,2]
[404352336,1770072301466,1200.0,9.329e-05,2]
[404352337,1770072302438,150.0,9.329e-05,2]